[Event "29th Czech Open-Rapid 2018"]
[Site "Pardubice"]
[Date "2018.07.18"]
[Round "2"]
[White "Haase, Pavel"]
[Black "Mosesov, Danylo"]
[Result "0-1"]
[ECO "A10"]
[WhiteElo "1994"]
[BlackElo "2282"]
[Annotator "NA"]
[PlyCount "112"]
[EventDate "2018.07.18"]
[EventType "swiss"]
[EventCountry "CZE"]
[SourceTitle "playchess.com"]
[Source "ChessBase"]
[SourceQuality "1"]
[TimeControl "900+10"]

1. c4 {[%emt 0:00:00]} g6 {[%emt 0:00:00]} 2. g3 {[%emt 0:00:00]} Bg7 {[%emt 0:00:00]} 3. Bg2 {[%emt 0:00:00]} d6 {[%emt 0:00:00]} 4. Nc3 {[%emt 0:00:00]} e5 {[%emt 0:00:26]} 5. e3 {[%emt 0:00:04]} Nc6 {[%emt 0:00:02]} 6. Nge2 {[%emt 0:00:03]} f5 {[%emt 0:00:26]} 7. d4 {[%emt 0:00:03]} Nf6 {[%emt 0:00:14]} 8. Bxc6+ {[%emt 0:00:09]} bxc6 {[%emt 0:00:01]} 9. dxe5 {[%emt 0:00:01]} dxe5 {[%emt 0:00:02]} 10. Qxd8+ Kxd8 11. b3 {[%emt 0:00:19]} Be6 {[%emt 0:00:14]} 12. Ba3 {[%emt 0:00:04]} Nd7 {[%emt 0:00:07]} 13. O-O-O {[%emt 0:00:17]} Ke8 {[%emt 0:00:14]} 14. e4 {[%emt 0:00:28]} Kf7 {[%emt 0:00:37]} 15. h4 {[%emt 0:00:17]} Rad8 {[%emt 0:00:39]} 16. h5 {[%emt 0:00:04]} Rhe8 {[%emt 0:01:27]} 17. hxg6+ {[%emt 0:01:10]} hxg6 {[%emt 0:00:00]} 18. f3 {[%emt 0:00:35]} Nf6 {[%emt 0:00:32]} 19. Bc5 {[%emt 0:00:31]} a6 {[%emt 0:00:12]} 20. Be3 {[%emt 0:01:44]} fxe4 {[%emt 0:00:09]} 21. Nxe4 {[%emt 0:01:07]} Nxe4 {[%emt 0:00:02]} 22. fxe4 {[%emt 0:00:02]} Bg4 {[%emt 0:00:28]} 23. Rxd8 Rxd8 24. Rd1 {[%emt 0:00:10]} Rxd1+ {[%emt 0:00:46]} 25. Kxd1 {[%emt 0:00:02]} Bf3 {[%emt 0:00:01]} 26. Kd2 {[%emt 0:00:44]} Bxe4 {[%emt 0:00:01]} 27. Nc3 {[%emt 0:00:03]} Bf5 {[%emt 0:00:01]} 28. Na4 {[%emt 0:00:10]} Ke7 {[%emt 0:00:25]} 29. b4 {[%emt 0:00:30]} Be6 {[%emt 0:00:53]} 30. Kd3 {[%emt 0:00:13]} Bf5+ {[%emt 0:00:58]} 31. Kd2 {[%emt 0:00:02]} Bc8 {[%emt 0:00:04]} 32. Nc5 {[%emt 0:00:19]} Kf6 {[%emt 0:00:36]} 33. Ke2 {[%emt 0:01:10]} Bf8 {[%emt 0:00:16]} 34. Nd3 {[%emt 0:00:54]} Be6 {[%emt 0:00:24]} 35. c5 {[%emt 0:00:03]} Bxa2 {[%emt 0:00:06]} 36. Kf3 {[%emt 0:00:08]} Bd5+ {[%emt 0:00:23]} 37. Kg4 {[%emt 0:00:02]} Bc4 {[%emt 0:00:50]} 38. Nf2 {[%emt 0:00:30]} Be2+ {[%emt 0:00:07]} 39. Kh4 {[%emt 0:00:01]} Bf3 {[%emt 0:00:53]} 40. g4 {[%emt 0:00:40]} Ke6 {[%emt 0:01:19]} 41. Kg5 {[%emt 0:00:14]} Kf7 {[%emt 0:00:04]} 42. Kh4 {[%emt 0:00:01]} Bg7 {[%emt 0:01:16]} 43. Nh3 {[%emt 0:00:39]} Be2 {[%emt 0:00:40]} 44. Ng5+ {[%emt 0:00:27]} Ke7 {[%emt 0:00:04]} 45. Nh3 {[%emt 0:01:04]} Ke6 {[%emt 0:00:33]} 46. Kg5 {[%emt 0:00:06]} Bd3 {[%emt 0:00:01]} 47. Bd2 {[%emt 0:01:04]} Kd5 {[%emt 0:00:42]} 48. Bc3 {[%emt 0:00:06]} Kc4 {[%emt 0:00:25]} 49. Bd2 {[%emt 0:00:17]} e4 {[%emt 0:00:56]} 50. Nf4 {[%emt 0:00:02]} Bc3 {[%emt 0:00:03]} 51. Bxc3 {[%emt 0:00:08]} Kxc3 {[%emt 0:00:01]} 52. Kxg6 {[%emt 0:00:01]} e3+ {[%emt 0:00:01]} 53. Kf6 {[%emt 0:00:02]} e2 {[%emt 0:00:04]} 54. Ng2 {[%emt 0:00:25]} Be4 {[%emt 0:00:07]} 55. Ne1 {[%emt 0:00:01]} Kd2 {[%emt 0:00:01]} 56. Ke5 {[%emt 0:00:01]} Bd5 {[%emt 0:00:13]} 0-1

[Event "29th Czech Open-Rapid 2018"]
[Site "Pardubice"]
[Date "2018.07.18"]
[Round "2"]
[White "Zdrazil, Jan"]
[Black "Roenko, Artur"]
[Result "1/2-1/2"]
[ECO "C18"]
[WhiteElo "1953"]
[BlackElo "2162"]
[Annotator "NA"]
[PlyCount "90"]
[EventDate "2018.07.18"]
[EventType "swiss"]
[EventCountry "CZE"]
[SourceTitle "playchess.com"]
[Source "ChessBase"]
[SourceQuality "1"]
[TimeControl "900+10"]

1. e4 {[%emt 0:00:00]} e6 {[%emt 0:00:00]} 2. d4 {[%emt 0:00:00]} d5 {[%emt 0:00:00]} 3. Nc3 {[%emt 0:00:00]} Bb4 {[%emt 0:00:00]} 4. e5 {[%emt 0:00:00]} c5 {[%emt 0:00:00]} 5. a3 {[%emt 0:00:00]} Bxc3+ {[%emt 0:00:00]} 6. bxc3 {[%emt 0:00:00]} Ne7 {[%emt 0:00:01]} 7. Qg4 {[%emt 0:00:02]} cxd4 {[%emt 0:00:02]} 8. Qxg7 {[%emt 0:00:15]} Rg8 {[%emt 0:00:02]} 9. Qxh7 {[%emt 0:00:01]} Qc7 {[%emt 0:00:07]} 10. Ne2 {[%emt 0:00:02]} Nbc6 {[%emt 0:00:11]} 11. f4 {[%emt 0:00:02]} dxc3 {[%emt 0:00:02]} 12. Qd3 {[%emt 0:00:21]} d4 {[%emt 0:00:02]} 13. Nxd4 {[%emt 0:00:09]} Nxd4 {[%emt 0:00:02]} 14. Qxd4 {[%emt 0:00:02]} Bd7 {[%emt 0:00:08]} 15. Rg1 {[%emt 0:00:04]} Nf5 {[%emt 0:00:11]} 16. Qf2 {[%emt 0:00:02]} Qc6 {[%emt 0:00:35]} 17. Bd3 {[%emt 0:02:26]} O-O-O {[%emt 0:00:43]} 18. g4 {[%emt 0:04:27]} Ne7 {[%emt 0:01:03]} 19. Qxa7 {[%emt 0:00:33]} Qf3 {[%emt 0:01:11]} 20. Qe3 {[%emt 0:02:15]} Qc6 {[%emt 0:00:32]} 21. Rb1 {[%emt 0:00:45]} Nd5 {[%emt 0:00:13]} 22. Qa7 {[%emt 0:00:35]} Nc7 {[%emt 0:01:04]} 23. Rb4 {[%emt 0:00:53]} b5 {[%emt 0:01:18]} 24. a4 {[%emt 0:01:11]} Qa6 {[%emt 0:00:04]} 25. Qxa6+ {[%emt 0:00:38]} Nxa6 {[%emt 0:00:02]} 26. Rd4 {[%emt 0:00:02]} Nc7 {[%emt 0:02:22]} 27. axb5 {[%emt 0:00:20]} Nd5 {[%emt 0:00:22]} 28. Ba3 {[%emt 0:00:59]} Rh8 {[%emt 0:00:12]} 29. Rh1 {[%emt 0:00:54]} Kb7 {[%emt 0:00:12]} 30. Kf2 {[%emt 0:00:16]} Ra8 {[%emt 0:00:19]} 31. Bd6 {[%emt 0:00:16]} Ra2 {[%emt 0:00:16]} 32. h4 {[%emt 0:00:20]} Rb2 {[%emt 0:01:37]} 33. h5 {[%emt 0:00:28]} Kb6 {[%emt 0:00:48]} 34. h6 {[%emt 0:00:12]} Bxb5 {[%emt 0:00:02]} 35. h7 {[%emt 0:01:17]} Bxd3 {[%emt 0:01:16]} 36. Rxd3 {[%emt 0:00:01]} Rxc2+ {[%emt 0:00:24]} 37. Kf3 {[%emt 0:00:01]} Rd2 {[%emt 0:00:11]} 38. Rxd2 {[%emt 0:00:33]} cxd2 {[%emt 0:00:02]} 39. Ke2 {[%emt 0:00:04]} d1=Q+ {[%emt 0:00:20]} 40. Kxd1 {[%emt 0:00:12]} Nxf4 {[%emt 0:00:20]} 41. Bf8 {[%emt 0:00:33]} Rxf8 {[%emt 0:01:17]} 42. h8=Q {[%emt 0:00:02]} Rxh8 {[%emt 0:00:03]} 43. Rxh8 {[%emt 0:00:00]} Ng6 {[%emt 0:00:01]} 44. Rh5 {[%emt 0:00:23]} Kc5 {[%emt 0:00:04]} 45. Ke2 {[%emt 0:00:29]} Kd4 1/2-1/2

[Event "29th Czech Open-Rapid 2018"]
[Site "Pardubice"]
[Date "2018.07.18"]
[Round "2"]
[White "Alekseev, Mikhail G"]
[Black "Petr, Jan"]
[Result "0-1"]
[ECO "C42"]
[WhiteElo "1855"]
[BlackElo "2282"]
[Annotator "NA"]
[PlyCount "92"]
[EventDate "2018.07.18"]
[EventType "swiss"]
[EventCountry "CZE"]
[SourceTitle "playchess.com"]
[Source "ChessBase"]
[SourceQuality "1"]
[TimeControl "900+10"]

1. e4 {[%emt 0:00:00]} e5 {[%emt 0:00:00]} 2. Nf3 {[%emt 0:00:00]} Nf6 {[%emt 0:00:00]} 3. Nxe5 {[%emt 0:00:15]} d6 {[%emt 0:00:00]} 4. Nf3 {[%emt 0:00:02]} Nxe4 {[%emt 0:00:00]} 5. d3 {[%emt 0:00:11]} Nf6 {[%emt 0:00:08]} 6. d4 {[%emt 0:00:01]} d5 {[%emt 0:00:11]} 7. Be2 {[%emt 0:00:06]} Bd6 {[%emt 0:00:13]} 8. O-O {[%emt 0:00:05]} h6 {[%emt 0:00:07]} 9. b3 {[%emt 0:00:38]} O-O {[%emt 0:00:06]} 10. Bb2 {[%emt 0:00:35]} Ne4 {[%emt 0:00:38]} 11. c4 {[%emt 0:00:38]} c6 {[%emt 0:00:05]} 12. Nc3 {[%emt 0:00:12]} Bf5 {[%emt 0:00:49]} 13. Rc1 {[%emt 0:01:18]} Bf4 {[%emt 0:00:32]} 14. Ra1 {[%emt 0:00:02]} Nd7 {[%emt 0:01:15]} 15. cxd5 {[%emt 0:00:15]} Nxc3 {[%emt 0:00:01]} 16. Bxc3 {[%emt 0:00:01]} cxd5 {[%emt 0:00:01]} 17. Ne5 {[%emt 0:01:09]} Re8 {[%emt 0:00:57]} 18. Bb5 {[%emt 0:00:43]} a6 {[%emt 0:01:12]} 19. Bxd7 {[%emt 0:00:59]} Bxd7 {[%emt 0:00:02]} 20. Qf3 {[%emt 0:01:17]} Bxe5 {[%emt 0:03:06]} 21. dxe5 {[%emt 0:00:01]} Be6 {[%emt 0:00:02]} 22. Bd4 {[%emt 0:00:51]} Qa5 {[%emt 0:00:07]} 23. Qe2 {[%emt 0:02:01]} Rac8 {[%emt 0:00:37]} 24. Rac1 {[%emt 0:00:34]} Qb4 {[%emt 0:00:09]} 25. Qb2 {[%emt 0:00:30]} Qb5 {[%emt 0:00:34]} 26. h3 {[%emt 0:01:02]} Qd3 {[%emt 0:00:04]} 27. Rfd1 {[%emt 0:00:34]} Qg6 {[%emt 0:00:05]} 28. Kh2 {[%emt 0:00:24]} Qg5 {[%emt 0:00:27]} 29. Rxc8 {[%emt 0:01:01]} Rxc8 {[%emt 0:00:01]} 30. Qd2 {[%emt 0:00:00]} Qh4 {[%emt 0:01:28]} 31. Bb2 {[%emt 0:01:17]} Qe4 {[%emt 0:01:23]} 32. Re1 {[%emt 0:00:29]} Rc2 {[%emt 0:00:34]} 33. Rxe4 {[%emt 0:00:30]} Rxd2 {[%emt 0:00:01]} 34. Bc3 {[%emt 0:00:04]} Rxa2 {[%emt 0:00:20]} 35. Rb4 {[%emt 0:00:13]} b5 {[%emt 0:01:47]} 36. f3 {[%emt 0:00:08]} Rc2 {[%emt 0:00:11]} 37. Be1 {[%emt 0:00:24]} d4 {[%emt 0:00:32]} 38. Rxd4 {[%emt 0:00:29]} Bxb3 {[%emt 0:00:01]} 39. Rd8+ {[%emt 0:00:12]} Kh7 {[%emt 0:00:02]} 40. Ra8 {[%emt 0:00:06]} Ra2 {[%emt 0:00:14]} 41. Kg3 {[%emt 0:00:43]} Bc4 {[%emt 0:00:01]} 42. Kf4 {[%emt 0:00:10]} g5+ {[%emt 0:00:39]} 43. Kf5 {[%emt 0:00:19]} Kg7 {[%emt 0:00:00]} 44. Bc3 {[%emt 0:00:17]} Bd3+ {[%emt 0:00:06]} 45. Kg4 {[%emt 0:00:05]} Rxg2+ {[%emt 0:00:03]} 46. Kh5 {[%emt 0:00:02]} Bg6# {[%emt 0:00:02]} 0-1

[Event "29th Czech Open-Rapid 2018"]
[Site "Pardubice"]
[Date "2018.07.18"]
[Round "2"]
[White "Trost, Martin"]
[Black "Pein, Jonathan"]
[Result "0-1"]
[ECO "B00"]
[WhiteElo "1838"]
[BlackElo "2106"]
[Annotator "NA"]
[PlyCount "36"]
[EventDate "2018.07.18"]
[EventType "swiss"]
[EventCountry "CZE"]
[SourceTitle "playchess.com"]
[Source "ChessBase"]
[SourceQuality "1"]
[TimeControl "900+10"]

1. e4 {[%emt 0:00:00]} Nc6 {[%emt 0:00:00]} 2. d4 {[%emt 0:00:00]} e5 {[%emt 0:00:00]} 3. d5 {[%emt 0:00:01]} Nce7 {[%emt 0:00:00]} 4. c4 {[%emt 0:00:02]} Ng6 {[%emt 0:00:00]} 5. g3 {[%emt 0:00:20]} Bc5 {[%emt 0:00:11]} 6. Be3 {[%emt 0:00:47]} Bxe3 {[%emt 0:00:10]} 7. fxe3 {[%emt 0:00:01]} Nf6 {[%emt 0:00:02]} 8. Nc3 {[%emt 0:00:09]} Qe7 {[%emt 0:00:02]} 9. Bg2 {[%emt 0:00:25]} Qb4 {[%emt 0:00:40]} 10. Qe2 {[%emt 0:00:07]} O-O {[%emt 0:00:35]} 11. Nf3 {[%emt 0:00:26]} Nxe4 {[%emt 0:00:28]} 12. O-O {[%emt 0:00:33]} Nxc3 {[%emt 0:00:07]} 13. bxc3 {[%emt 0:00:01]} Qxc3 {[%emt 0:00:10]} 14. e4 {[%emt 0:02:48]} d6 {[%emt 0:00:13]} 15. Rfc1 {[%emt 0:05:54]} Qa3 {[%emt 0:00:04]} 16. c5 {[%emt 0:00:30]} dxc5 {[%emt 0:01:26]} 17. Nd2 {[%emt 0:02:26]} b6 {[%emt 0:00:58]} 18. h4 {[%emt 0:00:47]} Qxg3 {[%emt 0:00:15]} 0-1

[Event "29th Czech Open-Rapid 2018"]
[Site "Pardubice"]
[Date "2018.07.18"]
[Round "2"]
[White "Ret, Adam Josef"]
[Black "Buchcar, Tomas"]
[Result "0-1"]
[ECO "A56"]
[WhiteElo "1824"]
[BlackElo "2133"]
[Annotator "NA"]
[PlyCount "100"]
[EventDate "2018.07.18"]
[EventType "swiss"]
[EventCountry "CZE"]
[SourceTitle "playchess.com"]
[Source "ChessBase"]
[SourceQuality "1"]
[TimeControl "900+10"]

1. d4 {[%emt 0:00:00]} Nf6 {[%emt 0:00:00]} 2. c4 {[%emt 0:00:00]} c5 {[%emt 0:00:00]} 3. d5 {[%emt 0:00:12]} e5 {[%emt 0:00:00]} 4. Nc3 {[%emt 0:00:50]} d6 {[%emt 0:00:00]} 5. e4 {[%emt 0:00:06]} Be7 {[%emt 0:00:00]} 6. g3 {[%emt 0:00:11]} Nbd7 {[%emt 0:00:00]} 7. Bg2 {[%emt 0:00:04]} Nf8 {[%emt 0:00:06]} 8. Nge2 {[%emt 0:00:05]} Ng6 {[%emt 0:00:22]} 9. Qc2 {[%emt 0:00:16]} a6 {[%emt 0:00:02]} 10. a3 {[%emt 0:00:11]} Bd7 {[%emt 0:00:37]} 11. Bd2 {[%emt 0:00:17]} O-O {[%emt 0:00:12]} 12. O-O {[%emt 0:00:02]} Re8 {[%emt 0:00:35]} 13. Rab1 {[%emt 0:00:26]} h6 {[%emt 0:00:23]} 14. b3 {[%emt 0:00:12]} Nh7 {[%emt 0:00:07]} 15. h3 {[%emt 0:00:42]} Qc8 {[%emt 0:00:10]} 16. Kh2 {[%emt 0:00:05]} Rf8 {[%emt 0:01:09]} 17. f4 {[%emt 0:02:58]} exf4 {[%emt 0:00:04]} 18. Nxf4 {[%emt 0:00:10]} Ne5 {[%emt 0:00:04]} 19. Nd3 {[%emt 0:00:28]} Bf6 {[%emt 0:00:17]} 20. Bf4 {[%emt 0:01:01]} Re8 {[%emt 0:00:02]} 21. Nxe5 {[%emt 0:00:14]} Bxe5 {[%emt 0:00:02]} 22. Bxe5 {[%emt 0:00:02]} Rxe5 {[%emt 0:00:01]} 23. Qf2 {[%emt 0:00:27]} Nf6 {[%emt 0:00:46]} 24. Qf4 {[%emt 0:00:59]} Qc7 {[%emt 0:02:36]} 25. Rbe1 {[%emt 0:01:32]} Rae8 {[%emt 0:00:02]} 26. Qd2 {[%emt 0:00:45]} Qd8 {[%emt 0:00:05]} 27. Re2 {[%emt 0:00:49]} Qe7 {[%emt 0:00:45]} 28. Rfe1 {[%emt 0:00:06]} Rg5 {[%emt 0:01:31]} 29. Re3 {[%emt 0:00:35]} Qe5 {[%emt 0:00:09]} 30. Ne2 {[%emt 0:01:13]} Rh5 {[%emt 0:02:49]} 31. Nf4 {[%emt 0:02:19]} Ng4+ {[%emt 0:00:14]} 32. Kg1 {[%emt 0:00:14]} Nxe3 {[%emt 0:00:02]} 33. Qxe3 {[%emt 0:01:10]} Rf5 {[%emt 0:00:41]} 34. h4 {[%emt 0:00:09]} Rf6 {[%emt 0:00:15]} 35. Qe2 {[%emt 0:01:28]} Rxf4 {[%emt 0:00:17]} 36. gxf4 {[%emt 0:00:04]} Qxf4 {[%emt 0:00:02]} 37. Qf2 {[%emt 0:00:14]} Qxf2+ {[%emt 0:01:01]} 38. Kxf2 {[%emt 0:00:03]} Re5 {[%emt 0:00:01]} 39. Re3 {[%emt 0:00:21]} f5 {[%emt 0:00:44]} 40. exf5 {[%emt 0:00:06]} Rxe3 {[%emt 0:00:27]} 41. Kxe3 {[%emt 0:00:02]} Bxf5 {[%emt 0:00:01]} 42. b4 {[%emt 0:00:31]} b6 {[%emt 0:00:05]} 43. Bf1 {[%emt 0:00:05]} Kf7 {[%emt 0:00:03]} 44. Kf4 {[%emt 0:00:00]} Kf6 {[%emt 0:00:01]} 45. bxc5 {[%emt 0:00:09]} bxc5 {[%emt 0:00:01]} 46. Be2 {[%emt 0:00:04]} g5+ {[%emt 0:00:04]} 47. hxg5+ {[%emt 0:00:02]} hxg5+ {[%emt 0:00:01]} 48. Ke3 {[%emt 0:00:03]} Ke5 {[%emt 0:00:06]} 49. Bf3 {[%emt 0:00:04]} Bh3 {[%emt 0:00:27]} 50. Be4 {[%emt 0:00:50]} Bf1 {[%emt 0:00:18]} 0-1

[Event "29th Czech Open-Rapid 2018"]
[Site "Pardubice"]
[Date "2018.07.18"]
[Round "2"]
[White "Effenberger, Adam"]
[Black "Slovak, Kilian"]
[Result "0-1"]
[ECO "B31"]
[WhiteElo "1817"]
[BlackElo "2285"]
[Annotator "NA"]
[PlyCount "56"]
[EventDate "2018.07.18"]
[EventType "swiss"]
[EventCountry "CZE"]
[SourceTitle "playchess.com"]
[Source "ChessBase"]
[SourceQuality "1"]
[TimeControl "900+10"]

1. e4 {[%emt 0:00:00]} c5 {[%emt 0:00:00]} 2. Nf3 {[%emt 0:00:00]} Nc6 {[%emt 0:00:03]} 3. Bb5 {[%emt 0:00:08]} g6 {[%emt 0:00:01]} 4. Bxc6 {[%emt 0:00:05]} bxc6 {[%emt 0:00:02]} 5. O-O {[%emt 0:00:10]} Bg7 {[%emt 0:00:07]} 6. Re1 {[%emt 0:00:18]} d6 {[%emt 0:00:03]} 7. c3 {[%emt 0:00:27]} Nh6 {[%emt 0:00:30]} 8. d4 {[%emt 0:00:21]} cxd4 {[%emt 0:00:04]} 9. cxd4 {[%emt 0:00:03]} O-O {[%emt 0:00:52]} 10. Nc3 {[%emt 0:00:13]} f6 {[%emt 0:00:07]} 11. Bf4 {[%emt 0:00:51]} Nf7 {[%emt 0:00:02]} 12. Rc1 {[%emt 0:00:18]} e5 {[%emt 0:00:05]} 13. dxe5 {[%emt 0:00:20]} fxe5 {[%emt 0:00:12]} 14. Be3 {[%emt 0:00:22]} Be6 {[%emt 0:00:37]} 15. b3 {[%emt 0:00:20]} d5 {[%emt 0:01:45]} 16. Bc5 {[%emt 0:00:33]} Re8 {[%emt 0:00:06]} 17. Na4 {[%emt 0:00:37]} d4 {[%emt 0:03:15]} 18. Ba3 {[%emt 0:00:21]} Ng5 {[%emt 0:00:48]} 19. Rxc6 {[%emt 0:01:48]} Bg4 {[%emt 0:00:05]} 20. Nc5 {[%emt 0:01:22]} Bxf3 {[%emt 0:04:52]} 21. gxf3 {[%emt 0:00:15]} Qa5 {[%emt 0:00:02]} 22. Ra6 {[%emt 0:05:46]} Qc3 {[%emt 0:02:12]} 23. Kg2 {[%emt 0:00:47]} Rf8 {[%emt 0:01:02]} 24. Nd3 {[%emt 0:01:29]} Rxf3 {[%emt 0:00:13]} 25. h4 {[%emt 0:00:01]} Rxd3 {[%emt 0:00:07]} 26. Qe2 {[%emt 0:01:27]} Nh3 {[%emt 0:00:12]} 27. Qg4 {[%emt 0:00:44]} Nf4+ {[%emt 0:00:03]} 28. Kf1 {[%emt 0:00:07]} Rh3 {[%emt 0:00:21]} 0-1

[Event "29th Czech Open-Rapid 2018"]
[Site "Pardubice"]
[Date "2018.07.18"]
[Round "2"]
[White "Salykin, Alexandr"]
[Black "Ruzicka, Josef"]
[Result "1-0"]
[ECO "A45"]
[WhiteElo "1745"]
[BlackElo "2139"]
[Annotator "NA"]
[PlyCount "65"]
[EventDate "2018.07.18"]
[EventType "swiss"]
[EventCountry "CZE"]
[SourceTitle "playchess.com"]
[Source "ChessBase"]
[SourceQuality "1"]
[TimeControl "900+10"]

1. d4 {[%emt 0:00:00]} Nf6 {[%emt 0:00:00]} 2. Bf4 {[%emt 0:00:00]} g6 {[%emt 0:00:09]} 3. e3 {[%emt 0:00:00]} Bg7 {[%emt 0:00:05]} 4. Nf3 {[%emt 0:00:00]} d6 {[%emt 0:00:04]} 5. h3 {[%emt 0:00:00]} O-O {[%emt 0:00:08]} 6. Be2 {[%emt 0:00:00]} b6 {[%emt 0:01:32]} 7. O-O {[%emt 0:00:06]} Bb7 {[%emt 0:00:17]} 8. a4 {[%emt 0:00:03]} a6 {[%emt 0:00:07]} 9. c3 {[%emt 0:00:02]} Nbd7 {[%emt 0:00:33]} 10. Bh2 {[%emt 0:00:09]} Re8 {[%emt 0:00:48]} 11. Re1 {[%emt 0:00:18]} e5 {[%emt 0:00:20]} 12. Na3 {[%emt 0:00:16]} Ne4 {[%emt 0:01:39]} 13. Nc4 {[%emt 0:02:48]} Qe7 {[%emt 0:01:57]} 14. Ncd2 {[%emt 0:04:27]} Nxd2 {[%emt 0:02:12]} 15. Nxd2 {[%emt 0:00:02]} f5 {[%emt 0:02:11]} 16. Qb3+ {[%emt 0:02:57]} Kh8 {[%emt 0:00:03]} 17. a5 {[%emt 0:00:14]} b5 {[%emt 0:00:26]} 18. c4 {[%emt 0:04:15]} exd4 {[%emt 0:00:14]} 19. exd4 {[%emt 0:00:18]} Bxg2 {[%emt 0:00:07]} 20. Kxg2 {[%emt 0:00:35]} Qg5+ {[%emt 0:00:02]} 21. Bg3 {[%emt 0:00:11]} Qxd2 {[%emt 0:00:04]} 22. Rad1 {[%emt 0:01:09]} Qxa5 {[%emt 0:00:34]} 23. Ra1 {[%emt 0:00:39]} Qb6 {[%emt 0:00:32]} 24. cxb5 {[%emt 0:00:14]} Bxd4 {[%emt 0:00:45]} 25. Bf3 {[%emt 0:00:08]} Rab8 {[%emt 0:00:24]} 26. Rxe8+ {[%emt 0:00:06]} Rxe8 {[%emt 0:00:08]} 27. Bc6 {[%emt 0:00:15]} Rd8 {[%emt 0:00:57]} 28. Rxa6 {[%emt 0:00:01]} Nc5 {[%emt 0:00:14]} 29. Rxb6 {[%emt 0:00:21]} Nxb3 {[%emt 0:00:01]} 30. Rb7 {[%emt 0:00:02]} Bb6 {[%emt 0:00:15]} 31. Bd5 {[%emt 0:00:14]} Nc5 {[%emt 0:00:22]} 32. Bh4 {[%emt 0:00:08]} Nxb7 {[%emt 0:00:14]} 33. Bf6# {[%emt 0:00:10]} 1-0

[Event "29th Czech Open-Rapid 2018"]
[Site "Pardubice"]
[Date "2018.07.18"]
[Round "2"]
[White "Bueble, Joschua"]
[Black "Cerveny, Martin"]
[Result "0-1"]
[ECO "A53"]
[WhiteElo "1722"]
[BlackElo "2359"]
[Annotator "NA"]
[PlyCount "42"]
[EventDate "2018.07.18"]
[EventType "swiss"]
[EventCountry "CZE"]
[SourceTitle "playchess.com"]
[Source "ChessBase"]
[SourceQuality "1"]
[TimeControl "900+10"]

1. d4 {[%emt 0:00:00]} Nf6 {[%emt 0:00:00]} 2. c4 {[%emt 0:00:00]} d6 {[%emt 0:00:00]} 3. Nc3 {[%emt 0:00:00]} Nbd7 {[%emt 0:00:05]} 4. e4 {[%emt 0:00:00]} e5 {[%emt 0:00:20]} 5. Nge2 {[%emt 0:00:43]} Be7 {[%emt 0:00:24]} 6. f3 {[%emt 0:00:13]} O-O {[%emt 0:00:14]} 7. Be3 {[%emt 0:00:03]} c6 {[%emt 0:00:32]} 8. d5 {[%emt 0:00:45]} cxd5 {[%emt 0:00:57]} 9. Nxd5 {[%emt 0:00:08]} Nxd5 {[%emt 0:00:01]} 10. Qxd5 {[%emt 0:00:45]} Nb6 {[%emt 0:01:01]} 11. Qd3 {[%emt 0:01:04]} f5 {[%emt 0:01:06]} 12. Qb3 {[%emt 0:02:35]} Be6 {[%emt 0:02:26]} 13. Nc3 {[%emt 0:00:39]} fxe4 {[%emt 0:00:11]} 14. fxe4 {[%emt 0:00:10]} Bg5 {[%emt 0:01:21]} 15. Bxg5 {[%emt 0:03:39]} Qxg5 {[%emt 0:00:02]} 16. Nb5 {[%emt 0:00:08]} Qh4+ {[%emt 0:00:38]} 17. Kd1 {[%emt 0:00:50]} Qxe4 {[%emt 0:02:44]} 18. Nc7 {[%emt 0:04:08]} Bg4+ {[%emt 0:00:02]} 19. Kc1 {[%emt 0:00:07]} Qe1+ {[%emt 0:00:08]} 20. Kc2 {[%emt 0:00:13]} Rf2+ {[%emt 0:00:07]} 21. Kd3 {[%emt 0:00:08]} Bf5# {Kd4} 0-1

[Event "29th Czech Open-Rapid 2018"]
[Site "Pardubice"]
[Date "2018.07.18"]
[Round "2"]
[White "Zdechovsky, Tobias"]
[Black "Pacl, Vaclav"]
[Result "0-1"]
[ECO "B01"]
[WhiteElo "1675"]
[BlackElo "2070"]
[Annotator "NA"]
[PlyCount "124"]
[EventDate "2018.07.18"]
[EventType "swiss"]
[EventCountry "CZE"]
[SourceTitle "playchess.com"]
[Source "ChessBase"]
[SourceQuality "1"]
[TimeControl "900+10"]

1. e4 {[%emt 0:00:00]} d5 {[%emt 0:00:00]} 2. exd5 {[%emt 0:00:00]} Qxd5 {[%emt 0:00:00]} 3. Nc3 {[%emt 0:00:00]} Qd6 {[%emt 0:00:00]} 4. d4 {[%emt 0:00:11]} a6 {[%emt 0:00:00]} 5. Nf3 {[%emt 0:00:05]} Bg4 {[%emt 0:00:00]} 6. Be2 {[%emt 0:00:05]} Nf6 {[%emt 0:00:04]} 7. O-O {[%emt 0:00:05]} e6 {[%emt 0:00:11]} 8. Ne5 {[%emt 0:00:19]} Bxe2 {[%emt 0:00:08]} 9. Nxe2 {[%emt 0:00:02]} Be7 {[%emt 0:00:33]} 10. f4 {[%emt 0:00:40]} c5 {[%emt 0:01:33]} 11. Be3 {[%emt 0:02:36]} cxd4 {[%emt 0:00:41]} 12. Bxd4 {[%emt 0:01:10]} Nc6 {[%emt 0:00:29]} 13. c4 {[%emt 0:01:52]} Nxd4 {[%emt 0:01:46]} 14. Qxd4 {[%emt 0:00:15]} Qc7 {[%emt 0:00:30]} 15. Kh1 {[%emt 0:02:07]} Bc5 {[%emt 0:00:44]} 16. Qd3 {[%emt 0:00:50]} Rd8 {[%emt 0:00:56]} 17. Qc2 {[%emt 0:00:02]} g6 {[%emt 0:01:00]} 18. Qa4+ {[%emt 0:01:28]} Kf8 {[%emt 0:00:02]} 19. Ng3 {[%emt 0:00:33]} Kg7 {[%emt 0:00:30]} 20. Rae1 {[%emt 0:01:52]} Rd4 {[%emt 0:01:40]} 21. Qc2 {[%emt 0:01:51]} Rhd8 {[%emt 0:00:38]} 22. Re2 {[%emt 0:00:10]} h5 {[%emt 0:00:53]} 23. h4 {[%emt 0:00:55]} Bd6 {[%emt 0:01:43]} 24. b3 {[%emt 0:00:03]} Bxe5 {[%emt 0:00:56]} 25. Rxe5 {[%emt 0:00:04]} Rxf4 {[%emt 0:00:07]} 26. Rxf4 {[%emt 0:00:24]} Qxe5 27. Rf3 {[%emt 0:00:45]} Qd4 {[%emt 0:00:33]} 28. Qf2 {[%emt 0:00:10]} Qxh4+ {[%emt 0:00:06]} 29. Kg1 {[%emt 0:00:02]} Rd1+ {[%emt 0:00:31]} 30. Nf1 {[%emt 0:00:01]} Qxf2+ {[%emt 0:00:08]} 31. Kxf2 {[%emt 0:00:02]} Ne4+ {[%emt 0:00:58]} 32. Ke2 {[%emt 0:00:21]} Rb1 {[%emt 0:00:06]} 33. Kd3 {[%emt 0:00:16]} f5 {[%emt 0:00:27]} 34. Kd4 {[%emt 0:00:30]} Kf6 {[%emt 0:00:03]} 35. Ne3 {[%emt 0:00:13]} Rb2 {[%emt 0:00:26]} 36. c5 {[%emt 0:00:18]} Rxa2 {[%emt 0:00:15]} 37. b4 {[%emt 0:00:40]} Rb2 {[%emt 0:00:24]} 38. Kc4 {[%emt 0:00:02]} Nd2+ {[%emt 0:00:03]} 39. Kc3 {[%emt 0:00:01]} Nxf3 {[%emt 0:00:12]} 40. Kxb2 {[%emt 0:00:02]} Nd4 {[%emt 0:00:10]} 41. Nc4 {[%emt 0:00:04]} Nb5 {[%emt 0:00:07]} 42. Kb3 {[%emt 0:00:11]} e5 {[%emt 0:00:02]} 43. Ka4 {[%emt 0:00:02]} Ke6 {[%emt 0:00:09]} 44. Ka5 {[%emt 0:00:01]} e4 {[%emt 0:00:56]} 45. Kb6 {[%emt 0:00:02]} f4 {[%emt 0:00:01]} 46. Kxb7 {[%emt 0:00:08]} f3 {[%emt 0:00:02]} 47. gxf3 {[%emt 0:00:06]} exf3 {[%emt 0:00:01]} 48. Kxa6 {[%emt 0:00:02]} Nc7+ {[%emt 0:00:01]} 49. Kb7 {[%emt 0:00:02]} Nd5 {[%emt 0:00:05]} 50. b5 {[%emt 0:00:13]} f2 {[%emt 0:00:01]} 51. Nd2 {[%emt 0:00:01]} h4 {[%emt 0:00:06]} 52. c6 {[%emt 0:00:03]} h3 {[%emt 0:00:02]} 53. b6 {[%emt 0:00:08]} h2 {[%emt 0:00:04]} 54. c7 {[%emt 0:00:04]} Nxc7 {[%emt 0:00:10]} 55. bxc7 {[%emt 0:00:01]} h1=Q+ {[%emt 0:00:02]} 56. Kb8 {[%emt 0:00:07]} Qh8+ {[%emt 0:00:18]} 57. c8=Q+ {[%emt 0:00:01]} Qxc8+ {[%emt 0:00:01]} 58. Kxc8 {[%emt 0:00:02]} Kf5 {[%emt 0:00:03]} 59. Kd7 {[%emt 0:00:01]} Kf4 {[%emt 0:00:06]} 60. Ke6 {[%emt 0:00:03]} g5 {[%emt 0:00:02]} 61. Kd5 {[%emt 0:00:02]} g4 {[%emt 0:00:02]} 62. Kd4 {[%emt 0:00:16]} g3 {[%emt 0:00:01]} 0-1